bitfinex-derivatives/quotes_BTCF0:USTF0_20250417
["timestamp","ask_amount","ask_price","bid_price","bid_amount"]
[1744882442602,0.56151812,84415.0,84414.0,0.1510969]
[1744882442804,0.56151812,84415.0,84414.0,0.03268]
[1744882442999,0.56251812,84415.0,84414.0,0.03268]
[1744882443710,0.56251812,84415.0,84414.0,0.1511769]
[1744882444305,0.56351812,84415.0,84414.0,0.1511769]
[1744882447512,0.56351812,84415.0,84414.0,0.1835769]
[1744882448113,0.30351812,84415.0,84414.0,0.1835769]
[1744882450414,0.31351812,84415.0,84414.0,0.1835769]
[1744882451315,0.19502262,84415.0,84414.0,0.1835769]
[1744882452709,0.16212262,84415.0,84414.0,0.1835769]
[1744882456716,0.16212262,84415.0,84414.0,0.1935769]
[1744882457016,0.19512262,84415.0,84414.0,0.1935769]
[1744882457206,0.18512262,84415.0,84414.0,0.1935769]
[1744882462010,0.21792262,84415.0,84414.0,0.1935769]
[1744882463116,0.22792262,84415.0,84414.0,0.1935769]
[1744882472425,0.21792262,84415.0,84414.0,0.1935769]
[1744882473732,0.21792262,84415.0,84414.0,0.1934969]
[1744882474531,0.21792262,84415.0,84414.0,0.1610969]
[1744882478537,0.22792262,84415.0,84414.0,0.1610969]
[1744882481938,0.34641812,84415.0,84414.0,0.1510969]
[1744882482441,0.22792262,84415.0,84414.0,0.1510969]
[1744882482841,0.22792262,84415.0,84414.0,0.1813969]
[1744882483645,0.19492262,84415.0,84414.0,0.1813969]
[1744882485531,0.18492262,84415.0,84414.0,0.1913969]
[1744882486642,0.1848,84415.0,84414.0,0.1913969]
[1744882491442,0.1948,84415.0,84414.0,0.1913969]
[1744882493041,0.1948907,84415.0,84414.0,0.1913969]
[1744882493242,0.19492262,84415.0,84414.0,0.1913969]
[1744882493543,0.1948,84415.0,84414.0,0.1913969]
[1744882496738,0.19490832,84415.0,84414.0,0.1913969]
[1744882497042,0.1948,84415.0,84414.0,0.1913969]
[1744882498433,0.1848,84415.0,84414.0,0.1913969]
[1744882499643,0.152,84415.0,84414.0,0.5521969]
[1744882500238,0.1521193,84415.0,84414.0,0.5521969]
[1744882500543,0.152,84415.0,84414.0,0.5521969]
[1744882500745,0.152,84415.0,84414.0,0.5721969]
[1744882501149,0.152,84415.0,84414.0,0.5521969]
[1744882502447,0.15212262,84415.0,84414.0,0.5521969]
[1744882502647,0.152,84415.0,84414.0,0.5521969]
[1744882503041,0.15209967,84415.0,84414.0,0.5521969]
[1744882503243,0.152,84415.0,84414.0,0.5521969]
[1744882504552,0.152,84415.0,84414.0,0.5522769]
[1744882506048,0.152,84415.0,84414.0,0.5521969]
[1744882506241,0.1845,84415.0,84414.0,0.5521969]
[1744882506639,0.1845,84415.0,84414.0,0.5522769]
[1744882507338,0.18462262,84415.0,84414.0,0.5522769]
[1744882507652,0.1845,84415.0,84414.0,0.5522769]
[1744882511651,0.18461879,84415.0,84414.0,0.5522769]
[1744882511950,0.1845,84415.0,84414.0,0.5522769]
[1744882512851,0.18461827,84415.0,84414.0,0.5522769]
[1744882513050,0.18459858,84415.0,84414.0,0.5522769]
[1744882513252,0.1845,84415.0,84414.0,0.5522769]
[1744882513953,0.1845,84415.0,84414.0,0.1914769]
[1744882514142,0.1845,84415.0,84414.0,0.5522769]
[1744882515458,0.1845,84415.0,84414.0,0.1914769]
[1744882515757,0.3129955,84415.0,84414.0,0.1285769]
[1744882515948,0.3129955,84415.0,84414.0,0.1284969]
[1744882516150,0.3447955,84415.0,84414.0,0.1185769]
[1744882517355,0.34491812,84415.0,84414.0,0.1185769]
[1744882517556,0.34491589,84415.0,84414.0,0.1185769]
[1744882517746,0.3447955,84415.0,84414.0,0.1185769]
[1744882517947,0.34491516,84415.0,84414.0,0.1185769]
[1744882518146,0.3447955,84415.0,84414.0,0.1185769]
[1744882519464,0.3347955,84415.0,84414.0,0.1285769]
[1744882520754,0.3347955,84415.0,84414.0,0.1606769]
[1744882521257,0.3447955,84415.0,84414.0,0.1606769]
[1744882521447,0.22642262,84415.0,84414.0,0.1506769]
[1744882521652,0.3447955,84415.0,84414.0,0.1506769]
[1744882522056,0.34488027,84415.0,84414.0,0.1506769]
[1744882522248,0.3447955,84415.0,84414.0,0.1506769]
[1744882525459,0.3347955,84415.0,84414.0,0.1606769]
[1744882527151,0.33491812,84415.0,84414.0,0.1606769]
[1744882527543,0.3347955,84415.0,84414.0,0.1606769]
[1744882528858,0.2163,84415.0,84414.0,0.1606769]
[1744882529655,0.21641792,84415.0,84414.0,0.1933769]
[1744882529853,0.2163,84415.0,84414.0,0.1933769]
[1744882531360,0.2263,84415.0,84414.0,0.1833769]
[1744882535548,0.22640025,84415.0,84414.0,0.1833769]
[1744882535754,0.22641595,84415.0,84414.0,0.1833769]
[1744882536054,0.2263,84415.0,84414.0,0.1833769]
[1744882536562,0.1945,84415.0,84414.0,0.5441769]
[1744882536747,0.1845,84415.0,84414.0,0.2250769]
[1744882539858,0.18461434,84415.0,84414.0,0.2250769]
[1744882540059,0.18462262,84415.0,84414.0,0.2250769]
[1744882540259,0.18458681,84415.0,84414.0,0.2250769]
[1744882540557,0.1845,84415.0,84414.0,0.2250769]
[1744882546365,0.1845,84415.0,84414.0,0.2249969]
[1744882547865,0.18461436,84415.0,84414.0,0.2249969]
[1744882548166,0.1845,84415.0,84414.0,0.2249969]
[1744882549363,0.1845,84415.0,84414.0,0.1932969]
[1744882551263,0.2253,84415.0,84414.0,0.1932969]
[1744882552966,0.2243916,84415.0,84414.0,0.1932969]
[1744882553169,0.2253,84415.0,84414.0,0.1932969]
[1744882556482,0.2153,84415.0,84414.0,0.1932969]
[1744882561367,0.21539041,84415.0,84414.0,0.1932969]
[1744882561667,0.2153,84415.0,84414.0,0.1932969]
[1744882561977,0.21542262,84415.0,84414.0,0.1932969]
[1744882562367,0.21538724,84415.0,84414.0,0.1932969]
[1744882562562,0.2153,84415.0,84414.0,0.1932969]
[1744882565471,0.21539223,84415.0,84414.0,0.1932969]
[1744882565671,0.2153,84415.0,84414.0,0.1932969]
[1744882565866,0.21540899,84415.0,84414.0,0.1932969]
[1744882566074,0.21541665,84415.0,84414.0,0.1932969]
[1744882566273,0.21542262,84415.0,84414.0,0.1932969]
[1744882566579,0.2153,84415.0,84414.0,0.1932969]
[1744882568173,0.21539199,84415.0,84414.0,0.1932969]
[1744882568376,0.21542262,84415.0,84414.0,0.1932969]
[1744882568576,0.2153,84415.0,84414.0,0.1932969]
[1744882571486,0.21542262,84415.0,84414.0,0.1932969]
[1744882571670,0.21541317,84415.0,84414.0,0.1932969]
[1744882571974,0.2153,84415.0,84414.0,0.1932969]
[1744882572275,0.21542262,84415.0,84414.0,0.1932969]
[1744882572476,0.2153,84415.0,84414.0,0.1932969]
[1744882573271,0.2253,84415.0,84414.0,0.1932969]
[1744882575572,0.2253,84415.0,84414.0,0.2132969]
[1744882576375,0.1845,84415.0,84414.0,0.2132969]
[1744882577582,0.18459348,84415.0,84414.0,0.2132969]
[1744882577775,0.1845,84415.0,84414.0,0.2132969]
[1744882582982,0.152,84415.0,84414.0,0.2132969]
[1744882586586,0.15212262,84415.0,84414.0,0.2132969]
[1744882586785,0.15210592,84415.0,84414.0,0.2132969]
[1744882586988,0.152,84415.0,84414.0,0.2132969]
[1744882592687,0.152,84415.0,84414.0,0.2133769]
[1744882593790,0.2164,84415.0,84414.0,0.2133769]
[1744882594991,0.21648971,84415.0,84414.0,0.2133769]
[1744882595186,0.2164,84415.0,84414.0,0.2133769]
[1744882599691,0.21652262,84415.0,84414.0,0.2133769]
[1744882599886,0.2164978,84415.0,84414.0,0.2133769]
[1744882600089,0.2164,84415.0,84414.0,0.2133769]
[1744882600486,0.21652262,84415.0,84414.0,0.2133769]
[1744882600688,0.2164,84415.0,84414.0,0.2133769]
[1744882601786,0.21650523,84415.0,84414.0,0.2133769]
[1744882601986,0.2164,84415.0,84414.0,0.2133769]
[1744882604589,0.21648474,84415.0,84414.0,0.2133769]
[1744882604790,0.21652262,84415.0,84414.0,0.2133769]
[1744882604986,0.21651606,84415.0,84414.0,0.2133769]
[1744882605188,0.21652262,84415.0,84414.0,0.2133769]
[1744882605390,0.2164,84415.0,84414.0,0.2133769]
[1744882608691,0.21652138,84415.0,84414.0,0.2133769]
[1744882608897,0.2164,84415.0,84414.0,0.2133769]
[1744882609895,0.2154,84415.0,84414.0,0.2133769]
[1744882614389,0.21552262,84415.0,84414.0,0.2133769]
[1744882614704,0.2154,84415.0,84414.0,0.2133769]
[1744882616606,0.7962,84415.0,84407.0,0.0592529]
[1744882616903,0.0592527,84409.0,84408.0,0.1777565]
[1744882617208,0.2492527,84409.0,84408.0,0.1777565]
[1744882617401,0.3430527,84409.0,84408.0,0.1777565]
[1744882619107,0.3440527,84409.0,84408.0,0.1777565]
[1744882619414,0.2848,84409.0,84408.0,0.1777565]
[1744882619796,0.4033039,84409.0,84408.0,0.2082565]
[1744882622111,0.2848,84409.0,84408.0,0.2082565]
[1744882623106,0.2648,84409.0,84408.0,0.2082565]
[1744882623412,0.26488586,84409.0,84408.0,0.2082565]
[1744882623615,0.38340748,84409.0,84408.0,0.2082565]
[1744882623815,0.3833039,84409.0,84408.0,0.2082565]
[1744882627204,0.2648,84409.0,84408.0,0.2082565]
[1744882627513,0.2025,84409.0,84408.0,0.2492565]
[1744882628304,0.20262262,84409.0,84408.0,0.2492565]
[1744882628705,0.2025,84409.0,84408.0,0.2492565]
[1744882630516,0.2025,84409.0,84408.0,0.2492565]
[1744882631017,0.171,84409.0,84408.0,0.2492565]
[1744882635008,0.17109958,84409.0,84408.0,0.2492565]
[1744882635217,0.00017766,84417.0,84416.0,0.1184941]
[1744882635415,0.07030028,84417.0,84416.0,0.6392941]
[1744882635614,0.07017766,84417.0,84416.0,0.7371941]
[1744882635923,0.3608,84429.0,84428.0,0.1184772]
[1744882636111,0.5308,84429.0,84428.0,0.1384772]
[1744882636306,0.5308,84429.0,84428.0,0.2027772]
[1744882637214,0.17,84429.0,84428.0,0.2353772]
[1744882637415,0.172,84429.0,84428.0,0.2353772]
[1744882641217,0.172,84429.0,84428.0,0.2042772]
[1744882644015,0.17211028,84429.0,84428.0,0.2042772]
[1744882644221,0.11848,84426.0,84425.0,0.3808]
[1744882644423,0.28848,84426.0,84425.0,0.3608]
[1744882644615,0.28848,84426.0,84425.0,0.36088]
[1744882644818,0.35080262,84426.0,84425.0,0.36088]
[1744882645018,0.38139476,84426.0,84425.0,0.36088]
[1744882645216,0.38140262,84426.0,84425.0,0.36088]
[1744882645418,0.63128,84426.0,84425.0,0.4793614]
[1744882645613,0.63139286,84426.0,84425.0,0.4793614]
[1744882645921,0.63128,84426.0,84425.0,0.4793614]
[1744882646621,0.5128,84426.0,84425.0,0.4793614]
[1744882646820,0.63228,84426.0,84425.0,0.4793614]
[1744882648327,0.38228,84426.0,84425.0,0.4793614]
[1744882650319,0.38240262,84426.0,84425.0,0.4793614]
[1744882650521,0.38228,84426.0,84425.0,0.4793614]
[1744882651030,0.2638,84426.0,84425.0,0.4793614]
[1744882651729,0.38228,84426.0,84425.0,0.4793614]
[1744882652329,0.39228,84426.0,84425.0,0.4793614]
[1744882654031,0.2738,84426.0,84425.0,0.4793614]
[1744882655419,0.27392262,84426.0,84425.0,0.4793614]
[1744882655618,0.2738,84426.0,84425.0,0.4793614]
[1744882656327,0.2638,84426.0,84425.0,0.4793614]
[1744882657132,0.2638,84426.0,84425.0,0.5110614]
[1744882658329,0.2638,84426.0,84425.0,0.1502614]
[1744882658923,0.2628,84426.0,84425.0,0.1502614]
[1744882659118,0.2638,84426.0,84425.0,0.1502614]
[1744882659933,0.26391243,84426.0,84425.0,0.1502614]
[1744882660132,0.2638,84426.0,84425.0,0.1502614]
[1744882661626,0.2638,84426.0,84425.0,0.1821614]
[1744882662638,0.2014,84426.0,84425.0,0.1821614]
[1744882662938,0.171,84426.0,84425.0,0.2349614]
[1744882663934,0.17,84426.0,84425.0,0.2349614]
[1744882664236,0.171,84426.0,84425.0,0.2349614]
[1744882664436,0.171,84426.0,84425.0,0.2020814]
[1744882664732,0.171,84426.0,84425.0,0.2021614]
[1744882665638,0.17112262,84426.0,84425.0,0.2021614]
[1744882665835,0.171,84426.0,84425.0,0.2021614]
[1744882666035,0.17109337,84426.0,84425.0,0.2021614]
[1744882666235,0.17110892,84426.0,84425.0,0.2021614]
[1744882666439,0.171,84426.0,84425.0,0.2021614]
[1744882666831,0.17112262,84426.0,84425.0,0.2021614]
[1744882667034,0.171,84426.0,84425.0,0.2021614]
[1744882675836,0.17112262,84426.0,84425.0,0.2021614]
[1744882676031,0.17108959,84426.0,84425.0,0.2021614]
[1744882676227,0.17110704,84426.0,84425.0,0.2021614]
[1744882676426,0.17109084,84426.0,84425.0,0.2021614]
[1744882676631,0.171,84426.0,84425.0,0.2021614]
[1744882679339,0.17112262,84426.0,84425.0,0.2021614]
[1744882679845,0.171,84426.0,84425.0,0.2021614]
[1744882681438,0.171,84426.0,84425.0,0.5629614]
[1744882684843,0.17112028,84426.0,84425.0,0.5629614]
[1744882685040,0.17110447,84426.0,84425.0,0.5629614]
[1744882685239,0.17110465,84426.0,84425.0,0.5629614]
[1744882685438,0.171,84426.0,84425.0,0.5629614]
[1744882688435,0.171,84426.0,84425.0,0.2021614]
[1744882688640,0.171,84426.0,84425.0,0.5629614]
[1744882689741,0.17112262,84426.0,84425.0,0.5629614]
[1744882689943,0.171,84426.0,84425.0,0.5629614]
[1744882692842,0.20282262,84426.0,84425.0,0.5629614]
[1744882693042,0.20279355,84426.0,84425.0,0.5629614]
[1744882693245,0.20282262,84426.0,84425.0,0.5629614]
[1744882693538,0.2027,84426.0,84425.0,0.5629614]
[1744882694250,0.20282262,84426.0,84425.0,0.5629614]
[1744882694444,0.2027,84426.0,84425.0,0.5629614]
[1744882695249,0.2027,84426.0,84425.0,0.2021614]
[1744882695454,0.2027,84426.0,84425.0,0.5629614]
[1744882695652,0.2027,84426.0,84425.0,0.2021614]
[1744882695854,0.2027,84426.0,84425.0,0.5629614]
[1744882696262,0.2027,84426.0,84425.0,0.5628814]
[1744882698843,0.2027,84426.0,84425.0,0.2020814]
[1744882699056,0.2027,84426.0,84425.0,0.5628814]
[1744882699849,0.2027,84426.0,84425.0,0.2020814]
[1744882700051,0.2027,84426.0,84425.0,0.5628814]
[1744882700757,0.2027,84426.0,84425.0,0.2020814]
[1744882701060,0.2027,84426.0,84425.0,0.5628814]
[1744882702552,0.2027,84426.0,84425.0,0.4992814]
[1744882704256,0.20281949,84426.0,84425.0,0.4992814]
[1744882704558,0.4427,84426.0,84425.0,0.4992814]
[1744882704957,0.4427,84426.0,84425.0,0.4993614]
[1744882705260,0.59208,84426.0,84425.0,0.4993614]
[1744882705854,0.4736,84426.0,84425.0,0.4993614]
[1744882706254,0.4746,84426.0,84425.0,0.4993614]
[1744882708361,0.47472262,84426.0,84425.0,0.4993614]
[1744882708562,0.4746,84426.0,84425.0,0.4993614]
[1744882709158,0.4736,84426.0,84425.0,0.4993614]
[1744882709356,0.47371822,84426.0,84425.0,0.1385614]
[1744882709562,0.4736,84426.0,84425.0,0.1385614]
[1744882710160,0.47370332,84426.0,84425.0,0.1385614]
[1744882710352,0.4736,84426.0,84425.0,0.1385614]
[1744882712069,0.2336,84426.0,84425.0,0.1385614]
[1744882712268,0.2326,84426.0,84425.0,0.1385614]
[1744882712566,0.2346,84426.0,84425.0,0.1385614]
[1744882712865,0.23468922,84426.0,84425.0,0.1385614]
[1744882713066,0.2336967,84426.0,84425.0,0.1385614]
[1744882713269,0.2336,84426.0,84425.0,0.1385614]
[1744882714674,0.23370551,84426.0,84425.0,0.1385614]
[1744882714862,0.2336,84426.0,84425.0,0.1385614]
[1744882715767,0.2326,84426.0,84425.0,0.1385614]
[1744882715971,0.2336,84426.0,84425.0,0.1385614]
[1744882716165,0.2436,84426.0,84425.0,0.1385614]
[1744882716569,0.2436,84426.0,84425.0,0.1384814]
[1744882716869,0.2436,84426.0,84425.0,0.1385614]
[1744882717465,0.2426,84426.0,84425.0,0.1385614]
[1744882717767,0.2436,84426.0,84425.0,0.1385614]
[1744882719268,0.2426,84426.0,84425.0,0.1385614]
[1744882719570,0.2436926,84426.0,84425.0,0.1385614]
[1744882719871,0.2436,84426.0,84425.0,0.1385614]
[1744882720371,0.2336,84426.0,84425.0,0.1385614]
[1744882720583,0.2336,84426.0,84425.0,0.2014614]
[1744882723075,0.23372262,84426.0,84425.0,0.2214614]
[1744882723373,0.2336,84426.0,84425.0,0.2214614]
[1744882723967,0.2027,84426.0,84425.0,0.2214614]
[1744882728779,0.20282262,84426.0,84425.0,0.2214614]
[1744882729081,0.2027,84426.0,84425.0,0.2214614]
[1744882735972,0.2027,84426.0,84425.0,0.1585614]
[1744882736182,0.2027,84426.0,84425.0,0.1911614]
[1744882736484,0.2027,84426.0,84425.0,0.2230614]
[1744882737083,0.2027,84426.0,84425.0,0.2229814]
[1744882737281,0.2027,84426.0,84425.0,0.2230614]
[1744882739381,0.20282262,84426.0,84425.0,0.2230614]
[1744882739588,0.20281446,84426.0,84425.0,0.2230614]
[1744882739891,0.2027,84426.0,84425.0,0.2230614]
[1744882743491,0.20278405,84426.0,84425.0,0.2230614]
[1744882743698,0.2027,84426.0,84425.0,0.2230614]
[1744882747101,0.2027,84426.0,84425.0,0.1911614]
[1744882747598,0.2027,84426.0,84425.0,0.1585614]
[1744882747795,0.32118,84426.0,84425.0,0.1585614]
[1744882748007,0.2027,84426.0,84425.0,0.1585614]
[1744882748299,0.0327,84426.0,84425.0,0.1185614]
[1744882748499,0.233,84426.0,84425.0,0.1484814]
[1744882748703,0.233,84426.0,84425.0,0.1485614]
[1744882748902,0.233,84426.0,84425.0,0.1815614]
[1744882749796,0.23312262,84426.0,84425.0,0.1815614]
[1744882749997,0.23311905,84426.0,84425.0,0.1815614]
[1744882750201,0.233,84426.0,84425.0,0.1815614]
[1744882750399,0.233,84426.0,84425.0,0.2143614]
[1744882750895,0.2027,84426.0,84425.0,0.2143614]
[1744882751897,0.1827,84426.0,84425.0,0.2343614]
[1744882752799,0.005,84436.0,84435.0,0.1184674]
[1744882753001,0.055,84436.0,84435.0,0.7411674]
[1744882754302,0.056,84436.0,84435.0,0.7411674]
[1744882754804,0.06,84436.0,84435.0,0.7411674]
[1744882755101,0.06012262,84436.0,84435.0,0.7411674]
[1744882755397,0.06,84436.0,84435.0,0.7411674]
[1744882758201,0.01,84436.0,84435.0,0.7411674]
[1744882758402,0.19,84436.0,84435.0,0.7411674]
[1744882758599,0.2232,84436.0,84435.0,0.7411674]
[1744882758997,0.04332262,84436.0,84435.0,0.5711674]
[1744882759197,0.0432,84436.0,84435.0,0.5711674]
[1744882759797,0.04332262,84436.0,84435.0,0.5711674]
[1744882759999,0.0432,84436.0,84435.0,0.5711674]
[1744882761993,0.0432,84436.0,84435.0,0.2103674]
[1744882762394,0.0432,84436.0,84435.0,0.5711674]
[1744882763503,0.04332262,84436.0,84435.0,0.5711674]
[1744882763705,0.0432,84436.0,84435.0,0.5711674]
[1744882764002,0.0432,84436.0,84435.0,0.2103674]
[1744882764202,0.0432,84436.0,84435.0,0.5711674]
[1744882764600,0.0432,84436.0,84435.0,0.2103674]
[1744882764807,0.0432,84436.0,84435.0,0.5711674]
[1744882765007,0.0432,84436.0,84435.0,0.2103674]
[1744882765208,0.0432,84436.0,84435.0,0.5711674]
[1744882768015,0.0432,84436.0,84435.0,0.2103674]
[1744882768418,0.0432,84436.0,84435.0,0.5711674]
[1744882770410,0.04330647,84436.0,84435.0,0.5711674]
[1744882770615,0.0432,84436.0,84435.0,0.5711674]
[1744882771018,0.0432,84436.0,84435.0,0.2103674]
[1744882771220,0.0432,84436.0,84435.0,0.5711674]
[1744882772620,0.1061,84436.0,84435.0,0.5401674]
[1744882773122,0.1061,84436.0,84435.0,0.4792674]
[1744882773311,0.1777076,84433.0,84425.0,8e-05]
[1744882773614,0.0631,84432.0,84431.0,0.118473]
[1744882774213,0.0631,84432.0,84431.0,0.118553]
[1744882775225,0.0651,84432.0,84431.0,0.118553]
[1744882775526,0.0661,84432.0,84431.0,0.118553]
[1744882775727,0.0661,84432.0,84431.0,0.150353]
[1744882775921,0.06622262,84432.0,84431.0,0.150353]
[1744882776523,0.0661,84432.0,84431.0,0.150353]
[1744882779023,0.0661,84432.0,84431.0,0.118553]
[1744882781019,0.06621866,84432.0,84431.0,0.118553]
[1744882781222,0.06622262,84432.0,84431.0,0.118553]
[1744882781417,0.06618546,84432.0,84431.0,0.118553]
[1744882781622,0.0661,84432.0,84431.0,0.118553]
[1744882787534,0.0661,84432.0,84431.0,0.151453]
[1744882789829,0.06622262,84432.0,84431.0,0.151453]
[1744882790028,0.06619034,84432.0,84431.0,0.151453]
[1744882790234,0.06622262,84432.0,84431.0,0.151453]
[1744882790631,0.0661,84432.0,84431.0,0.151453]
[1744882794035,0.0661,84432.0,84431.0,0.181553]
[1744882794231,0.0359,84432.0,84431.0,0.181553]
[1744882794829,0.003,84432.0,84431.0,0.181553]
[1744882795335,0.00309133,84432.0,84431.0,0.181553]
[1744882795638,0.003,84432.0,84431.0,0.181553]
[1744882796636,0.00308383,84432.0,84431.0,0.181553]
[1744882796938,0.003,84432.0,84431.0,0.181553]
[1744882800443,0.00309165,84432.0,84431.0,0.181553]
[1744882800633,0.003,84432.0,84431.0,0.181553]
[1744882803738,0.003,84432.0,84431.0,0.181473]
[1744882804341,0.0361,84432.0,84431.0,0.181473]
[1744882804540,0.03622262,84432.0,84431.0,0.181473]
[1744882804743,0.0361,84432.0,84431.0,0.181473]
[1744882805045,0.005,84436.0,84431.0,0.1362]
[1744882805244,0.005,84462.0,84461.0,0.1184309]
[1744882805942,0.00508799,84462.0,84461.0,0.13013162]
[1744882806142,0.005,84462.0,84461.0,0.13013162]
[1744882806449,0.005,84462.0,84461.0,0.1184309]
[1744882806649,0.005,84462.0,84461.0,0.1824309]
[1744882807750,0.011,84462.0,84461.0,0.1824309]
[1744882808442,0.005,84462.0,84461.0,0.1824309]
[1744882808641,0.007,84462.0,84461.0,0.1834309]
[1744882810245,0.00712262,84462.0,84461.0,0.1834309]
[1744882810547,0.007,84462.0,84461.0,0.1834309]
[1744882814752,0.00712262,84462.0,84461.0,0.1834309]
[1744882815369,0.007,84462.0,84461.0,0.1834309]
[1744882818652,0.00709032,84462.0,84461.0,0.1834309]
[1744882818853,0.00712262,84462.0,84461.0,0.1834309]
[1744882819050,0.007,84462.0,84461.0,0.1834309]
[1744882819454,0.00711375,84462.0,84461.0,0.1834309]
[1744882819657,0.00712262,84462.0,84461.0,0.1834309]
[1744882819954,0.007,84462.0,84461.0,0.1834309]
[1744882820653,0.007,84462.0,84461.0,0.1519309]
[1744882821757,0.00712262,84462.0,84461.0,0.1519309]
[1744882822058,0.007,84462.0,84461.0,0.1519309]
[1744882822254,0.4114,84486.0,84485.0,0.1183973]
[1744882822455,0.3608,84498.0,84485.0,0.4199986]
[1744882822756,0.0313,84497.0,84487.0,0.1183945]
[1744882822955,0.0313,84497.0,84487.0,0.1817945]
[1744882823356,0.00017754,84496.0,84487.0,0.1817945]
[1744882823853,0.00600001,84488.0,84487.0,0.1817945]
[1744882825046,0.00600001,84488.0,84487.0,0.19369053]
[1744882825247,1e-08,84488.0,84487.0,0.19369053]
[1744882825462,0.00500001,84488.0,84487.0,0.19469053]
[1744882825755,0.00800001,84488.0,84487.0,0.19469053]
[1744882828753,0.00800001,84488.0,84487.0,0.55549053]
[1744882831963,0.02800001,84488.0,84487.0,0.55549053]
[1744882836358,0.02800001,84488.0,84487.0,0.55557053]
[1744882841466,0.00017754,84496.0,84487.0,0.55557053]
[1744882841467,0.00017754,84496.0,84495.0,0.1183833]
[1744882841770,0.00017754,84496.0,84495.0,0.4791833]
[1744882841956,0.00017754,84496.0,84495.0,0.5408833]
[1744882843265,0.00717754,84496.0,84495.0,0.5418833]
[1744882843975,0.4114,84515.0,84510.0,0.1183623]
[1744882844271,0.36115873,84511.0,84510.0,0.1183623]
[1744882844466,0.3608,84511.0,84510.0,0.1143623]
[1744882844667,0.42658,84511.0,84510.0,0.1782623]
[1744882845382,0.00308,84511.0,84510.0,0.1782623]
[1744882846073,0.003,84511.0,84510.0,0.1782623]
[1744882846257,0.00308,84511.0,84510.0,0.1782623]
[1744882846773,0.00308,84511.0,84510.0,0.1982623]
[1744882847365,0.003,84511.0,84510.0,0.1982623]
[1744882847571,0.00308,84511.0,84510.0,0.1982623]
[1744882847772,0.00808,84511.0,84510.0,0.1992623]
[1744882848669,0.00026573,84515.0,84510.0,0.1992623]
[1744882848670,0.1183239,84538.0,84521.0,0.059173]
[1744882848869,0.0306,84535.0,84534.0,0.1183287]
[1744882849068,0.1489273,84535.0,84534.0,0.1383287]
[1744882849272,0.1813273,84535.0,84534.0,0.1715287]
[1744882849470,0.1813273,84535.0,84534.0,0.02]
[1744882849960,0.1813273,84535.0,84534.0,0.1383287]
[1744882850167,0.5422073,84535.0,84534.0,0.1383287]
[1744882850776,0.9522073,84535.0,84534.0,0.1183287]
[1744882851066,0.41008,84535.0,84534.0,0.4791287]
[1744882851367,0.5954073,84535.0,84534.0,0.4891287]
[1744882851562,0.6024073,84535.0,84534.0,0.4801287]
[1744882851771,0.9632073,84535.0,84534.0,0.1193287]
[1744882853073,0.78288,84535.0,84534.0,0.1193287]
[1744882853270,0.3757401,84535.0,84534.0,0.1496287]
[1744882853470,0.16,84535.0,84534.0,0.1696287]
[1744882853674,0.16008,84535.0,84534.0,0.1696287]
[1744882853878,0.16008,84535.0,84534.0,0.2427487]
[1744882854566,0.16208,84535.0,84534.0,0.2417487]
[1744882854771,0.16308,84535.0,84534.0,0.2417487]
[1744882855775,0.16308,84535.0,84534.0,0.1383287]
[1744882856170,0.17308,84535.0,84534.0,0.1383287]
[1744882856370,0.17308,84535.0,84534.0,0.1183287]
[1744882856766,0.23568,84535.0,84534.0,0.1183287]
[1744882860067,0.23568,84535.0,84534.0,0.1506287]
[1744882861373,0.23568,84535.0,84534.0,0.1606287]
[1744882863990,0.163,84535.0,84534.0,0.1606287]
[1744882864170,0.16308,84535.0,84534.0,0.2235287]
[1744882864482,0.14923152,84535.0,84534.0,0.2235287]
[1744882864685,0.14931152,84535.0,84534.0,0.2235287]
[1744882865282,0.14931152,84535.0,84534.0,0.1913287]
[1744882865480,0.14923152,84535.0,84534.0,0.2644087]
[1744882865673,0.14931152,84535.0,84534.0,0.2644087]
[1744882866077,0.14923152,84535.0,84534.0,0.2644087]
[1744882866388,0.14923152,84535.0,84534.0,0.1606287]
[1744882866871,0.16078662,84535.0,84534.0,0.1606287]
[1744882867277,0.15878662,84535.0,84534.0,0.1616287]
[1744882867680,0.22108662,84535.0,84534.0,0.1616287]
[1744882869971,0.22108662,84535.0,84534.0,0.1293287]
[1744882870484,0.22108662,84535.0,84534.0,0.1620287]
[1744882870870,0.20853152,84535.0,84534.0,0.1620287]
[1744882871285,0.22108662,84535.0,84534.0,0.1620287]
[1744882873288,0.18948662,84535.0,84534.0,0.1921287]
[1744882874386,0.15878662,84535.0,84534.0,0.1921287]
[1744882875889,0.14623152,84535.0,84534.0,0.1921287]
[1744882876481,0.14631152,84535.0,84534.0,0.1921287]
[1744882877289,0.15886662,84535.0,84534.0,0.1921287]
[1744882878597,0.15886662,84535.0,84534.0,0.1620287]
[1744882879183,0.19096662,84535.0,84534.0,0.1620287]
[1744882879684,0.19096662,84535.0,84534.0,0.1943287]
[1744882885395,0.43929392,84535.0,84534.0,0.0437]
[1744882885698,0.32096662,84535.0,84534.0,0.1620287]
[1744882885898,0.35246662,84535.0,84534.0,0.1620287]
[1744882886193,0.35246662,84535.0,84534.0,0.1520287]
[1744882887795,0.47079392,84535.0,84534.0,0.1520287]
[1744882888187,0.47079392,84535.0,84534.0,0.1620287]
[1744882888798,0.35246662,84535.0,84534.0,0.1620287]
[1744882889496,0.35246662,84535.0,84534.0,0.1520287]
[1744882890098,0.47079392,84535.0,84534.0,0.1520287]
[1744882907709,0.35246662,84535.0,84534.0,0.1520287]
[1744882908104,0.47079392,84535.0,84534.0,0.1520287]
[1744882912114,0.47079392,84535.0,84534.0,0.1820287]
[1744882914518,0.35246662,84535.0,84534.0,0.1820287]
[1744882915217,0.47079392,84535.0,84534.0,0.1820287]
[1744882915809,0.35246662,84535.0,84534.0,0.1820287]
[1744882917419,0.35246662,84535.0,84534.0,0.1920287]
[1744882918417,0.35238662,84535.0,84534.0,0.1920287]
[1744882918613,0.35246662,84535.0,84534.0,0.1920287]
[1744882928314,0.15886662,84535.0,84534.0,0.1920287]
[1744882928521,0.15878662,84535.0,84534.0,0.1920287]
[1744882928724,0.15886662,84535.0,84534.0,0.1920287]
[1744882928922,0.15878662,84535.0,84534.0,0.1920287]
[1744882929125,0.15886662,84535.0,84534.0,0.1920287]
[1744882933027,0.00017754,84543.0,84542.0,0.1183175]
[1744882933226,0.15017754,84543.0,84542.0,0.6034175]
[1744882933625,0.15025754,84543.0,84542.0,0.6034175]
[1744882934028,0.15017754,84543.0,84542.0,0.6034175]
[1744882934330,0.15125754,84543.0,84542.0,0.6034175]